[Event "December 19 Late 2023"]
[Site "https://www.chess.com"]
[Date "2023.12.19"]
[Round "2"]
[White "Sivakumar, Shaaketh"]
[Black "Daneshvar, Bardiya"]
[Result "1-0"]
[Board "15"]
[TimeControl "180+1"]
[WhiteFideId "30940176"]
[BlackFideId "12576468"]
[WhiteElo "2292"]
[BlackElo "2483"]
[WhiteTeam "USA"]
[BlackTeam "IRI"]
[WhiteClock "0:00:33"]
[BlackClock "0:00:08"]

1. Nf3 {[%clk 0:03:00]}  b6 {[%clk 0:03:00]} 2. g3 {[%clk 0:02:56]}  Bb7 {[%clk 0:03:01]} 3. Bg2 {[%clk 0:02:57]}  g5 {[%clk 0:03:02]} 4. h3 {[%clk 0:02:48]}  h5 {[%clk 0:02:58]} 5. c4 {[%clk 0:02:46]}  Bg7 {[%clk 0:02:57]} 6. Nc3 {[%clk 0:02:37]}  c5 {[%clk 0:02:55]} 7. d3 {[%clk 0:02:36]}  g4 {[%clk 0:02:56]} 8. hxg4 {[%clk 0:02:36]}  hxg4 {[%clk 0:02:56]} 9. Rxh8 {[%clk 0:02:35]}  Bxh8 {[%clk 0:02:53]} 10. Nh4 {[%clk 0:02:35]}  Bxg2 {[%clk 0:02:53]} 11. Nxg2 {[%clk 0:02:36]}  Nc6 {[%clk 0:02:52]} 12. e3 {[%clk 0:02:33]}  Ne5 {[%clk 0:02:51]} 13. Kd2 {[%clk 0:02:22]}  Nf3+ {[%clk 0:02:48]} 14. Kc2 {[%clk 0:02:21]}  e6 {[%clk 0:02:48]} 15. Qh1 {[%clk 0:02:12]}  Bxc3 {[%clk 0:02:46]} 16. bxc3 {[%clk 0:02:11]}  Qg5 {[%clk 0:02:37]} 17. Nh4 {[%clk 0:02:09]}  Qf6 {[%clk 0:02:36]} 18. Nxf3 {[%clk 0:02:08]}  Qxf3 {[%clk 0:02:32]} 19. Qxf3 {[%clk 0:02:04]}  gxf3 {[%clk 0:02:33]} 20. e4 {[%clk 0:02:05]}  Nf6 {[%clk 0:02:33]} 21. Bg5 {[%clk 0:01:56]}  Nh7 {[%clk 0:02:27]} 22. Rh1 {[%clk 0:01:56]}  Nxg5 {[%clk 0:02:17]} 23. Rh8+ {[%clk 0:01:57]}  Ke7 {[%clk 0:02:18]} 24. Rxa8 {[%clk 0:01:57]}  Nh3 {[%clk 0:02:19]} 25. Rh8 {[%clk 0:01:49]}  Nxf2 {[%clk 0:02:19]} 26. Rh4 {[%clk 0:01:49]}  e5 {[%clk 0:01:50]} 27. Kd2 {[%clk 0:01:47]}  d6 {[%clk 0:01:47]} 28. Ke3 {[%clk 0:01:31]}  Nd1+ {[%clk 0:01:46]} 29. Kxf3 {[%clk 0:01:30]}  Nxc3 {[%clk 0:01:46]} 30. a3 {[%clk 0:01:25]}  Nb1 {[%clk 0:01:43]} 31. Rh8 {[%clk 0:01:25]}  Nxa3 {[%clk 0:01:43]} 32. Ra8 {[%clk 0:01:26]}  a5 {[%clk 0:01:40]} 33. Ra6 {[%clk 0:01:25]}  b5 {[%clk 0:01:35]} 34. cxb5 {[%clk 0:01:25]}  Nxb5 {[%clk 0:01:36]} 35. Rxa5 {[%clk 0:01:25]}  Nd4+ {[%clk 0:01:36]} 36. Ke3 {[%clk 0:01:25]}  Ke6 {[%clk 0:01:25]} 37. g4 {[%clk 0:01:21]}  Nc6 {[%clk 0:01:25]} 38. Ra8 {[%clk 0:01:20]}  Ne7 {[%clk 0:01:26]} 39. Re8 {[%clk 0:01:19]}  Kd7 {[%clk 0:01:24]} 40. Rf8 {[%clk 0:01:19]}  Ke6 {[%clk 0:01:25]} 41. Rh8 {[%clk 0:01:19]}  Ng6 {[%clk 0:01:24]} 42. Rh5 {[%clk 0:01:18]}  Nf4 {[%clk 0:01:23]} 43. Rf5 {[%clk 0:01:18]}  Ng2+ {[%clk 0:01:19]} 44. Kd2 {[%clk 0:01:17]}  Nf4 {[%clk 0:01:13]} 45. Rg5 {[%clk 0:01:15]}  Ng6 {[%clk 0:01:08]} 46. Rh5 {[%clk 0:01:14]}  Nf4 {[%clk 0:01:09]} 47. Rh6+ {[%clk 0:01:14]}  Ke7 {[%clk 0:01:10]} 48. Kc3 {[%clk 0:01:12]}  Ng2 {[%clk 0:00:58]} 49. g5 {[%clk 0:01:07]}  Nf4 {[%clk 0:00:58]} 50. Kc4 {[%clk 0:01:05]}  Kd7 {[%clk 0:00:56]} 51. Rf6 {[%clk 0:01:02]}  Ke7 {[%clk 0:00:56]} 52. Rh6 {[%clk 0:00:59]}  Kd7 {[%clk 0:00:52]} 53. Rh2 {[%clk 0:00:58]}  Ke6 {[%clk 0:00:46]} 54. Ra2 {[%clk 0:00:53]}  Nh3 {[%clk 0:00:40]} 55. Rg2 {[%clk 0:00:50]}  Nf4 {[%clk 0:00:40]} 56. Rg1 {[%clk 0:00:50]}  Ke7 {[%clk 0:00:37]} 57. Rg3 {[%clk 0:00:48]}  Ne2 {[%clk 0:00:24]} 58. g6 {[%clk 0:00:40]}  fxg6 {[%clk 0:00:24]} 59. Rxg6 {[%clk 0:00:40]}  Nf4 {[%clk 0:00:23]} 60. Rg7+ {[%clk 0:00:40]}  Ke6 {[%clk 0:00:23]} 61. Ra7 {[%clk 0:00:40]}  Kf6 {[%clk 0:00:20]} 62. Rh7 {[%clk 0:00:40]}  Ke6 {[%clk 0:00:20]} 63. Rh6+ {[%clk 0:00:40]}  Kd7 {[%clk 0:00:20]} 64. Rh1 {[%clk 0:00:40]}  Kc6 {[%clk 0:00:20]} 65. Rd1 {[%clk 0:00:41]}  Ng2 {[%clk 0:00:20]} 66. Ra1 {[%clk 0:00:39]}  Ne3+ {[%clk 0:00:20]} 67. Kc3 {[%clk 0:00:40]}  Ng2 {[%clk 0:00:21]} 68. Kd2 {[%clk 0:00:40]}  Nf4 {[%clk 0:00:21]} 69. Rh1 {[%clk 0:00:40]}  Kb5 {[%clk 0:00:20]} 70. Rh6 {[%clk 0:00:40]}  Kc6 {[%clk 0:00:20]} 71. Kc3 {[%clk 0:00:39]}  Ne2+ {[%clk 0:00:21]} 72. Kc4 {[%clk 0:00:39]}  Nf4 {[%clk 0:00:20]} 73. Rh8 {[%clk 0:00:40]}  Ng2 {[%clk 0:00:20]} 74. Rc8+ {[%clk 0:00:40]}  Kd7 {[%clk 0:00:20]} 75. Ra8 {[%clk 0:00:40]}  Ne3+ {[%clk 0:00:17]} 76. Kb5 {[%clk 0:00:40]}  Nc2 {[%clk 0:00:18]} 77. Ra7+ {[%clk 0:00:39]}  Ke6 {[%clk 0:00:18]} 78. Ra2 {[%clk 0:00:35]}  Nb4 {[%clk 0:00:17]} 79. Rd2 {[%clk 0:00:35]}  Kd7 {[%clk 0:00:17]} 80. Kc4 {[%clk 0:00:34]}  Kc6 {[%clk 0:00:17]} 81. Rg2 {[%clk 0:00:33]}  Kd7 {[%clk 0:00:16]} 82. Rg3 {[%clk 0:00:33]}  Kc6 {[%clk 0:00:16]} 83. Rg7 {[%clk 0:00:33]}  Nc2 {[%clk 0:00:16]} 84. Rg3 {[%clk 0:00:31]}  Nd4 {[%clk 0:00:16]} 85. Re3 {[%clk 0:00:31]}  Kd7 {[%clk 0:00:14]} 86. Kc3 {[%clk 0:00:31]}  Kc7 {[%clk 0:00:13]} 87. Rh3 {[%clk 0:00:31]}  Kd7 {[%clk 0:00:13]} 88. Rh2 {[%clk 0:00:32]}  Kd8 {[%clk 0:00:13]} 89. Kc4 {[%clk 0:00:33]}  Kc7 {[%clk 0:00:12]} 90. Kd5 {[%clk 0:00:33]}  Nb5 {[%clk 0:00:12]} 91. Rh7+ {[%clk 0:00:33]}  Kb6 {[%clk 0:00:12]} 92. Rd7 {[%clk 0:00:32]}  Ka5 {[%clk 0:00:11]} 93. Rxd6 {[%clk 0:00:32]}  Nxd6 {[%clk 0:00:08]} 94. Kxd6 {[%clk 0:00:33]} 1-0

[Event "December 19 Late 2023"]
[Site "https://www.chess.com"]
[Date "2023.12.19"]
[Round "2"]
[White "Colas, Joshua"]
[Black "Grigoriants, Sergey"]
[Result "1/2-1/2"]
[Board "17"]
[TimeControl "180+1"]
[WhiteFideId "2044447"]
[BlackFideId "4130804"]
[WhiteElo "2347"]
[BlackElo "2532"]
[WhiteTeam "USA"]
[BlackTeam "HUN"]
[WhiteClock "0:00:07"]
[BlackClock "0:00:05"]

1. Nf3 {[%clk 0:02:56]}  d5 {[%clk 0:02:57]} 2. d4 {[%clk 0:02:53]}  Nf6 {[%clk 0:02:56]} 3. Bf4 {[%clk 0:02:50]}  c5 {[%clk 0:02:56]} 4. e3 {[%clk 0:02:51]}  Nc6 {[%clk 0:02:56]} 5. c3 {[%clk 0:02:46]}  Qb6 {[%clk 0:02:54]} 6. Qb3 {[%clk 0:02:40]}  c4 {[%clk 0:02:54]} 7. Qc2 {[%clk 0:02:41]}  Bf5 {[%clk 0:02:54]} 8. Qc1 {[%clk 0:02:41]}  e6 {[%clk 0:02:53]} 9. Nbd2 {[%clk 0:02:42]}  h6 {[%clk 0:02:52]} 10. h3 {[%clk 0:02:38]}  Rc8 {[%clk 0:02:52]} 11. Be2 {[%clk 0:02:39]}  Be7 {[%clk 0:02:51]} 12. O-O {[%clk 0:02:39]}  O-O {[%clk 0:02:48]} 13. b3 {[%clk 0:02:40]}  cxb3 {[%clk 0:02:35]} 14. axb3 {[%clk 0:02:40]}  Nb4 {[%clk 0:02:14]} 15. c4 {[%clk 0:02:13]}  Nd3 {[%clk 0:01:55]} 16. Bxd3 {[%clk 0:02:08]}  Bxd3 {[%clk 0:01:56]} 17. c5 {[%clk 0:02:01]}  Qb5 {[%clk 0:01:55]} 18. Re1 {[%clk 0:02:00]}  a5 {[%clk 0:01:49]} 19. Ne5 {[%clk 0:01:55]}  b6 {[%clk 0:01:35]} 20. Qa3 {[%clk 0:00:55]}  bxc5 {[%clk 0:01:08]} 21. Qxa5 {[%clk 0:00:30]}  cxd4 {[%clk 0:00:43]} 22. Qxb5 {[%clk 0:00:29]}  Bxb5 {[%clk 0:00:42]} 23. exd4 {[%clk 0:00:29]}  Bb4 {[%clk 0:00:40]} 24. Rac1 {[%clk 0:00:20]}  Ne4 {[%clk 0:00:30]} 25. Nxe4 {[%clk 0:00:11]}  Bxe1 {[%clk 0:00:11]} 26. Rxc8 {[%clk 0:00:11]}  Rxc8 {[%clk 0:00:11]} 27. Nd6 {[%clk 0:00:12]}  Rb8 {[%clk 0:00:12]} 28. Nexf7 {[%clk 0:00:09]}  Ba6 {[%clk 0:00:09]} 29. Ne5 {[%clk 0:00:01]}  Rxb3 {[%clk 0:00:09]} 30. Be3 {[%clk 0:00:02]}  Rb2 {[%clk 0:00:07]} 31. Ndf7 {[%clk 0:00:03]}  Bd2 {[%clk 0:00:05]} 32. Nd8 {[%clk 0:00:02]}  Bxe3 {[%clk 0:00:05]} 33. fxe3 {[%clk 0:00:03]}  Bc8 {[%clk 0:00:05]} 34. Ndc6 {[%clk 0:00:03]}  Kh7 {[%clk 0:00:05]} 35. Ne7 {[%clk 0:00:04]}  Ba6 {[%clk 0:00:05]} 36. Nd7 {[%clk 0:00:04]}  Rb7 {[%clk 0:00:04]} 37. Nf8+ {[%clk 0:00:04]}  Kh8 {[%clk 0:00:04]} 38. Nfg6+ {[%clk 0:00:04]}  Kh7 {[%clk 0:00:04]} 39. Nf8+ {[%clk 0:00:05]}  Kh8 {[%clk 0:00:05]} 40. Nfg6+ {[%clk 0:00:06]}  Kh7 {[%clk 0:00:05]} 41. Nf8+ {[%clk 0:00:07]} 1/2-1/2

[Event "December 19 Late 2023"]
[Site "https://www.chess.com"]
[Date "2023.12.19"]
[Round "2"]
[White "Khismatullin, Denis"]
[Black "Roebers, Eline"]
[Result "1-0"]
[Board "18"]
[TimeControl "180+1"]
[WhiteFideId "4142578"]
[BlackFideId "1058401"]
[WhiteElo "2552"]
[BlackElo "2589"]
[WhiteTeam "RUS"]
[BlackTeam "NED"]
[WhiteClock "0:02:25"]
[BlackClock "0:01:04"]

1. e4 {[%clk 0:03:00]}  c5 {[%clk 0:02:59]} 2. Nf3 {[%clk 0:03:00]}  e6 {[%clk 0:02:59]} 3. c3 {[%clk 0:02:59]}  Nf6 {[%clk 0:02:58]} 4. e5 {[%clk 0:02:59]}  Nd5 {[%clk 0:02:59]} 5. Bc4 {[%clk 0:02:59]}  Nc6 {[%clk 0:02:57]} 6. d4 {[%clk 0:02:56]}  cxd4 {[%clk 0:02:58]} 7. cxd4 {[%clk 0:02:56]}  d6 {[%clk 0:02:57]} 8. O-O {[%clk 0:02:56]}  Be7 {[%clk 0:02:57]} 9. Re1 {[%clk 0:02:55]}  O-O {[%clk 0:02:56]} 10. exd6 {[%clk 0:02:55]}  Bxd6 {[%clk 0:02:56]} 11. Nc3 {[%clk 0:02:54]}  Nxc3 {[%clk 0:02:54]} 12. bxc3 {[%clk 0:02:54]}  b6 {[%clk 0:02:40]} 13. Bd3 {[%clk 0:02:53]}  h6 {[%clk 0:02:36]} 14. Qe2 {[%clk 0:02:47]}  Bb7 {[%clk 0:02:12]} 15. Qe4 {[%clk 0:02:45]}  g6 {[%clk 0:02:12]} 16. Bxh6 {[%clk 0:02:42]}  Re8 {[%clk 0:02:06]} 17. Bg5 {[%clk 0:02:40]}  Be7 {[%clk 0:02:01]} 18. Qh4 {[%clk 0:02:41]}  Rc8 {[%clk 0:01:04]} 19. Rxe6 {[%clk 0:02:25]} 1-0

[Event "December 19 Late 2023"]
[Site "https://www.chess.com"]
[Date "2023.12.19"]
[Round "2"]
[White "Kovalev, Vladislav"]
[Black "Spata, German"]
[Result "1-0"]
[Board "24"]
[TimeControl "180+1"]
[WhiteFideId "13504398"]
[BlackFideId "113026"]
[WhiteElo "2539"]
[BlackElo "2260"]
[WhiteTeam "FID"]
[BlackTeam "ARG"]
[WhiteClock "0:01:04"]
[BlackClock "0:00:27"]

1. e4 {[%clk 0:03:00]}  c5 {[%clk 0:02:50]} 2. Nf3 {[%clk 0:03:01]}  a6 {[%clk 0:02:50]} 3. c4 {[%clk 0:03:00]}  Nc6 {[%clk 0:02:46]} 4. d4 {[%clk 0:03:01]}  cxd4 {[%clk 0:02:46]} 5. Nxd4 {[%clk 0:03:01]}  e5 {[%clk 0:02:45]} 6. Nf5 {[%clk 0:03:01]}  d5 {[%clk 0:02:44]} 7. cxd5 {[%clk 0:02:58]}  Bxf5 {[%clk 0:02:43]} 8. exf5 {[%clk 0:02:59]}  Nd4 {[%clk 0:02:43]} 9. Nc3 {[%clk 0:02:57]}  Bb4 {[%clk 0:02:26]} 10. a3 {[%clk 0:02:44]}  Bxc3+ {[%clk 0:02:21]} 11. bxc3 {[%clk 0:02:45]}  Nxf5 {[%clk 0:02:21]} 12. Rb1 {[%clk 0:02:20]}  Nd6 {[%clk 0:02:18]} 13. c4 {[%clk 0:02:18]}  Nf6 {[%clk 0:02:07]} 14. Be2 {[%clk 0:02:18]}  O-O {[%clk 0:02:04]} 15. O-O {[%clk 0:02:15]}  Nfe4 {[%clk 0:02:01]} 16. Qc2 {[%clk 0:01:52]}  Rc8 {[%clk 0:01:58]} 17. Bd3 {[%clk 0:01:17]}  b5 {[%clk 0:01:34]} 18. Bxe4 {[%clk 0:01:14]}  Rxc4 {[%clk 0:01:33]} 19. Bxh7+ {[%clk 0:01:15]}  Kh8 {[%clk 0:01:34]} 20. Qd3 {[%clk 0:01:15]}  Qh4 {[%clk 0:01:10]} 21. Bf5 {[%clk 0:01:08]}  Rd4 {[%clk 0:00:27]} 22. Qh3 {[%clk 0:01:04]} 1-0

[Event "December 19 Late 2023"]
[Site "https://www.chess.com"]
[Date "2023.12.19"]
[Round "2"]
[White "Postlmayer, Jakob"]
[Black "Ibarra Jerez, Jose Carlos"]
[Result "1/2-1/2"]
[Board "27"]
[TimeControl "180+1"]
[WhiteFideId "1643622"]
[BlackFideId "2226332"]
[WhiteElo "2337"]
[BlackElo "2634"]
[WhiteTeam "AUT"]
[BlackTeam "ESP"]
[WhiteClock "0:00:05"]
[BlackClock "0:00:05"]

1. c4 {[%clk 0:03:00]}  e5 {[%clk 0:02:59]} 2. d3 {[%clk 0:02:58]}  Nf6 {[%clk 0:02:57]} 3. Nf3 {[%clk 0:02:58]}  c6 {[%clk 0:02:53]} 4. g3 {[%clk 0:02:54]}  h6 {[%clk 0:02:52]} 5. Bg2 {[%clk 0:02:54]}  Bd6 {[%clk 0:02:52]} 6. O-O {[%clk 0:02:53]}  Bc7 {[%clk 0:02:53]} 7. e4 {[%clk 0:02:49]}  O-O {[%clk 0:02:53]} 8. Nc3 {[%clk 0:02:49]}  Re8 {[%clk 0:02:50]} 9. Re1 {[%clk 0:02:46]}  d5 {[%clk 0:02:45]} 10. cxd5 {[%clk 0:02:42]}  cxd5 {[%clk 0:02:46]} 11. exd5 {[%clk 0:02:41]}  Na6 {[%clk 0:02:35]} 12. a3 {[%clk 0:02:30]}  Bg4 {[%clk 0:02:25]} 13. h3 {[%clk 0:02:27]}  Bh5 {[%clk 0:02:25]} 14. g4 {[%clk 0:02:23]}  Bg6 {[%clk 0:02:25]} 15. Nh4 {[%clk 0:02:19]}  Bh7 {[%clk 0:02:25]} 16. b4 {[%clk 0:02:16]}  Bb6 {[%clk 0:02:17]} 17. Nf3 {[%clk 0:01:58]}  e4 {[%clk 0:01:18]} 18. dxe4 {[%clk 0:01:50]}  Nxe4 {[%clk 0:01:18]} 19. Nxe4 {[%clk 0:01:49]}  Bxe4 {[%clk 0:01:18]} 20. Bb2 {[%clk 0:01:29]}  Qxd5 {[%clk 0:01:12]} 21. Qxd5 {[%clk 0:01:27]}  Bxd5 {[%clk 0:01:13]} 22. Rad1 {[%clk 0:01:19]}  Bb3 {[%clk 0:01:07]} 23. Rxe8+ {[%clk 0:01:05]}  Rxe8 {[%clk 0:01:06]} 24. Re1 {[%clk 0:01:06]}  Rd8 {[%clk 0:00:56]} 25. Bc1 {[%clk 0:00:47]}  Nc7 {[%clk 0:00:52]} 26. Be3 {[%clk 0:00:43]}  Nb5 {[%clk 0:00:40]} 27. Bxb6 {[%clk 0:00:39]}  axb6 {[%clk 0:00:41]} 28. Re3 {[%clk 0:00:39]}  Rd1+ {[%clk 0:00:35]} 29. Kh2 {[%clk 0:00:38]}  Bd5 {[%clk 0:00:31]} 30. a4 {[%clk 0:00:36]}  Nd6 {[%clk 0:00:31]} 31. Ne5 {[%clk 0:00:30]}  Bxg2 {[%clk 0:00:29]} 32. Kxg2 {[%clk 0:00:31]}  f6 {[%clk 0:00:05]} 33. Nd7 {[%clk 0:00:26]}  Nc4 {[%clk 0:00:04]} 34. Rc3 {[%clk 0:00:21]}  Rd4 {[%clk 0:00:03]} 35. a5 {[%clk 0:00:16]}  bxa5 {[%clk 0:00:01]} 36. bxa5 {[%clk 0:00:17]}  Nxa5 {[%clk 0:00:01]} 37. Nc5 {[%clk 0:00:17]}  Rd5 {[%clk 0:00:02]} 38. Ne4 {[%clk 0:00:14]}  Rd7 {[%clk 0:00:02]} 39. f4 {[%clk 0:00:13]}  Nc6 {[%clk 0:00:02]} 40. Rc5 {[%clk 0:00:12]}  Rd4 {[%clk 0:00:02]} 41. Kf3 {[%clk 0:00:11]}  Rd3+ {[%clk 0:00:02]} 42. Ke2 {[%clk 0:00:11]}  Rxh3 {[%clk 0:00:02]} 43. Nd6 {[%clk 0:00:11]}  Nd4+ {[%clk 0:00:01]} 44. Kd2 {[%clk 0:00:11]}  Ne6 {[%clk 0:00:02]} 45. Rc8+ {[%clk 0:00:10]}  Kh7 {[%clk 0:00:02]} 46. f5 {[%clk 0:00:11]}  Ng5 {[%clk 0:00:02]} 47. Rc7 {[%clk 0:00:10]}  Nf3+ {[%clk 0:00:02]} 48. Kc1 {[%clk 0:00:10]}  Ne5 {[%clk 0:00:03]} 49. Ne8 {[%clk 0:00:09]}  Kh8 {[%clk 0:00:02]} 50. Nxg7 {[%clk 0:00:08]}  Nxg4 {[%clk 0:00:02]} 51. Ne6 {[%clk 0:00:08]}  Rf3 {[%clk 0:00:02]} 52. Rc8+ {[%clk 0:00:08]}  Kh7 {[%clk 0:00:02]} 53. Rc7+ {[%clk 0:00:09]}  Kg8 {[%clk 0:00:02]} 54. Rg7+ {[%clk 0:00:08]}  Kh8 {[%clk 0:00:03]} 55. Rxg4 {[%clk 0:00:09]}  Rxf5 {[%clk 0:00:03]} 56. Nf8 {[%clk 0:00:10]}  h5 {[%clk 0:00:02]} 57. Rg1 {[%clk 0:00:08]}  h4 {[%clk 0:00:02]} 58. Kd2 {[%clk 0:00:09]}  h3 {[%clk 0:00:02]} 59. Rh1 {[%clk 0:00:08]}  Rh5 {[%clk 0:00:02]} 60. Ng6+ {[%clk 0:00:09]}  Kg7 {[%clk 0:00:03]} 61. Nf4 {[%clk 0:00:09]}  Rh4 {[%clk 0:00:03]} 62. Nxh3 {[%clk 0:00:09]}  Kf7 {[%clk 0:00:03]} 63. Nf2 {[%clk 0:00:10]}  Rd4+ {[%clk 0:00:03]} 64. Ke3 {[%clk 0:00:10]}  Ra4 {[%clk 0:00:04]} 65. Rb1 {[%clk 0:00:10]}  Ra3+ {[%clk 0:00:04]} 66. Nd3 {[%clk 0:00:10]}  Ra7 {[%clk 0:00:04]} 67. Nc5 {[%clk 0:00:10]}  Kg6 {[%clk 0:00:05]} 68. Nxb7 {[%clk 0:00:10]}  Ra4 {[%clk 0:00:04]} 69. Nc5 {[%clk 0:00:10]}  Rh4 {[%clk 0:00:05]} 70. Nd3 {[%clk 0:00:10]}  Kf5 {[%clk 0:00:05]} 71. Rf1+ {[%clk 0:00:10]}  Ke6 {[%clk 0:00:04]} 72. Nf4+ {[%clk 0:00:10]}  Kf7 {[%clk 0:00:04]} 73. Ne2 {[%clk 0:00:10]}  Rh3+ {[%clk 0:00:03]} 74. Ke4 {[%clk 0:00:10]}  Rh4+ {[%clk 0:00:04]} 75. Nf4 {[%clk 0:00:11]}  Rh8 {[%clk 0:00:05]} 76. Rb1 {[%clk 0:00:11]}  Re8+ {[%clk 0:00:05]} 77. Kf3 {[%clk 0:00:11]}  Re7 {[%clk 0:00:05]} 78. Rb6 {[%clk 0:00:12]}  Ra7 {[%clk 0:00:05]} 79. Kg4 {[%clk 0:00:12]}  Ra4 {[%clk 0:00:05]} 80. Rb7+ {[%clk 0:00:11]}  Ke8 {[%clk 0:00:06]} 81. Kf5 {[%clk 0:00:12]}  Ra1 {[%clk 0:00:06]} 82. Nd5 {[%clk 0:00:12]}  Kd8 {[%clk 0:00:05]} 83. Ke6 {[%clk 0:00:11]}  Ra6+ {[%clk 0:00:06]} 84. Kf7 {[%clk 0:00:11]}  Rd6 {[%clk 0:00:05]} 85. Nxf6 {[%clk 0:00:10]}  Rd1 {[%clk 0:00:04]} 86. Rb4 {[%clk 0:00:09]}  Rf1 {[%clk 0:00:04]} 87. Ke6 {[%clk 0:00:09]}  Re1+ {[%clk 0:00:04]} 88. Ne4 {[%clk 0:00:10]}  Kc7 {[%clk 0:00:03]} 89. Rc4+ {[%clk 0:00:09]}  Kd8 {[%clk 0:00:02]} 90. Ke5 {[%clk 0:00:10]}  Re2 {[%clk 0:00:02]} 91. Rd4+ {[%clk 0:00:10]}  Ke7 {[%clk 0:00:03]} 92. Ra4 {[%clk 0:00:10]}  Re1 {[%clk 0:00:03]} 93. Ra7+ {[%clk 0:00:10]}  Ke8 {[%clk 0:00:04]} 94. Kd5 {[%clk 0:00:10]}  Rd1+ {[%clk 0:00:04]} 95. Ke6 {[%clk 0:00:10]}  Kd8 {[%clk 0:00:05]} 96. Nf6 {[%clk 0:00:10]}  Re1+ {[%clk 0:00:05]} 97. Kd6 {[%clk 0:00:10]}  Rd1+ {[%clk 0:00:06]} 98. Nd5 {[%clk 0:00:10]}  Ke8 {[%clk 0:00:06]} 99. Rh7 {[%clk 0:00:09]}  Rd2 {[%clk 0:00:06]} 100. Rh5 {[%clk 0:00:09]}  Rd1 {[%clk 0:00:06]} 101. Ke6 {[%clk 0:00:09]}  Re1+ {[%clk 0:00:06]} 102. Kd6 {[%clk 0:00:10]}  Rd1 {[%clk 0:00:06]} 103. Rg5 {[%clk 0:00:10]}  Rd2 {[%clk 0:00:06]} 104. Rf5 {[%clk 0:00:10]}  Rd1 {[%clk 0:00:06]} 105. Ke6 {[%clk 0:00:10]}  Re1+ {[%clk 0:00:06]} 106. Kf6 {[%clk 0:00:11]}  Rd1 {[%clk 0:00:05]} 107. Nf4 {[%clk 0:00:11]}  Re1 {[%clk 0:00:04]} 108. Ne6 {[%clk 0:00:11]}  Kd7 {[%clk 0:00:04]} 109. Rd5+ {[%clk 0:00:11]}  Kc6 {[%clk 0:00:04]} 110. Rd2 {[%clk 0:00:11]}  Rf1+ {[%clk 0:00:04]} 111. Ke7 {[%clk 0:00:11]}  Rh1 {[%clk 0:00:04]} 112. Rd6+ {[%clk 0:00:11]}  Kb5 {[%clk 0:00:05]} 113. Kd7 {[%clk 0:00:10]}  Kc4 {[%clk 0:00:05]} 114. Kc6 {[%clk 0:00:10]}  Rh8 {[%clk 0:00:05]} 115. Rd4+ {[%clk 0:00:10]}  Kc3 {[%clk 0:00:05]} 116. Rg4 {[%clk 0:00:10]}  Rc8+ {[%clk 0:00:06]} 117. Kd5 {[%clk 0:00:10]}  Ra8 {[%clk 0:00:06]} 118. Rg3+ {[%clk 0:00:10]}  Kd2 {[%clk 0:00:06]} 119. Nc5 {[%clk 0:00:09]}  Rd8+ {[%clk 0:00:06]} 120. Kc4 {[%clk 0:00:09]}  Rc8 {[%clk 0:00:06]} 121. Kd4 {[%clk 0:00:08]}  Rd8+ {[%clk 0:00:06]} 122. Kc4 {[%clk 0:00:09]}  Rc8 {[%clk 0:00:07]} 123. Rh3 {[%clk 0:00:09]}  Ke2 {[%clk 0:00:06]} 124. Rh5 {[%clk 0:00:09]}  Ke3 {[%clk 0:00:06]} 125. Re5+ {[%clk 0:00:09]}  Kd2 {[%clk 0:00:06]} 126. Kb3 {[%clk 0:00:07]}  Rb8+ {[%clk 0:00:06]} 127. Kc4 {[%clk 0:00:08]}  Rc8 {[%clk 0:00:07]} 128. Rh5 {[%clk 0:00:07]}  Ke3 {[%clk 0:00:07]} 129. Rh3+ {[%clk 0:00:07]}  Kf4 {[%clk 0:00:07]} 130. Kd4 {[%clk 0:00:06]}  Rd8+ {[%clk 0:00:06]} 131. Kc4 {[%clk 0:00:06]}  Rc8 {[%clk 0:00:06]} 132. Kd5 {[%clk 0:00:07]}  Rd8+ {[%clk 0:00:05]} 133. Kc6 {[%clk 0:00:07]}  Rc8+ {[%clk 0:00:05]} 134. Kd6 {[%clk 0:00:07]}  Kg4 {[%clk 0:00:05]} 135. Rb3 {[%clk 0:00:05]} 1/2-1/2

[Event "December 19 Late 2023"]
[Site "https://www.chess.com"]
[Date "2023.12.19"]
[Round "2"]
[White "Gabuzyan, Hovhannes"]
[Black "Bold, Andre"]
[Result "0-1"]
[Board "30"]
[TimeControl "180+1"]
[WhiteFideId "13303732"]
[BlackFideId "16208471"]
[WhiteElo "2486"]
[BlackElo "2110"]
[WhiteTeam "ARM"]
[BlackTeam "GER"]
[WhiteClock "0:00:41"]
[BlackClock "0:00:20"]

1. e4 {[%clk 0:03:00]}  c6 {[%clk 0:02:59]} 2. d4 {[%clk 0:03:00]}  d5 {[%clk 0:03:00]} 3. Nc3 {[%clk 0:03:01]}  dxe4 {[%clk 0:03:00]} 4. Nxe4 {[%clk 0:03:02]}  Nf6 {[%clk 0:03:01]} 5. Nxf6+ {[%clk 0:03:02]}  exf6 {[%clk 0:03:02]} 6. c3 {[%clk 0:03:02]}  Bd6 {[%clk 0:03:01]} 7. Bd3 {[%clk 0:03:03]}  O-O {[%clk 0:03:01]} 8. Qc2 {[%clk 0:03:04]}  h6 {[%clk 0:03:01]} 9. Ne2 {[%clk 0:03:05]}  Nd7 {[%clk 0:03:00]} 10. O-O {[%clk 0:03:04]}  Nb6 {[%clk 0:03:00]} 11. Bf4 {[%clk 0:03:03]}  Bxf4 {[%clk 0:02:58]} 12. Nxf4 {[%clk 0:03:04]}  Qd6 {[%clk 0:02:57]} 13. Qd2 {[%clk 0:03:03]}  Nd5 {[%clk 0:02:53]} 14. Nxd5 {[%clk 0:03:03]}  cxd5 {[%clk 0:02:54]} 15. Rfe1 {[%clk 0:03:02]}  Be6 {[%clk 0:02:52]} 16. Re3 {[%clk 0:03:02]}  Qf4 {[%clk 0:02:50]} 17. Rae1 {[%clk 0:02:59]}  a5 {[%clk 0:02:48]} 18. Qc1 {[%clk 0:02:54]}  Rfc8 {[%clk 0:02:46]} 19. g3 {[%clk 0:02:52]}  Qd6 {[%clk 0:02:45]} 20. f4 {[%clk 0:02:52]}  f5 {[%clk 0:02:43]} 21. Re5 {[%clk 0:02:47]}  g6 {[%clk 0:02:42]} 22. g4 {[%clk 0:02:46]}  fxg4 {[%clk 0:02:27]} 23. f5 {[%clk 0:02:46]}  Bxf5 {[%clk 0:02:27]} 24. Bxf5 {[%clk 0:02:30]}  gxf5 {[%clk 0:02:27]} 25. Qf4 {[%clk 0:02:30]}  Qg6 {[%clk 0:02:04]} 26. Rxd5 {[%clk 0:02:26]}  Re8 {[%clk 0:02:00]} 27. Rde5 {[%clk 0:02:27]}  Rxe5 {[%clk 0:01:58]} 28. Rxe5 {[%clk 0:02:28]}  a4 {[%clk 0:01:32]} 29. a3 {[%clk 0:02:25]}  Ra6 {[%clk 0:01:28]} 30. Re8+ {[%clk 0:02:08]}  Kg7 {[%clk 0:01:23]} 31. Qb8 {[%clk 0:02:08]}  Qd6 {[%clk 0:01:11]} 32. Rg8+ {[%clk 0:02:04]}  Kf6 {[%clk 0:01:11]} 33. Qxd6+ {[%clk 0:01:55]}  Rxd6 {[%clk 0:01:10]} 34. Ra8 {[%clk 0:01:55]}  Rb6 {[%clk 0:01:08]} 35. Rxa4 {[%clk 0:01:54]}  Rxb2 {[%clk 0:01:08]} 36. Rb4 {[%clk 0:01:52]}  Rc2 {[%clk 0:00:41]} 37. Rb6+ {[%clk 0:01:49]}  Kg5 {[%clk 0:00:40]} 38. Rxb7 {[%clk 0:01:48]}  Rxc3 {[%clk 0:00:41]} 39. Rxf7 {[%clk 0:01:47]}  Rxa3 {[%clk 0:00:41]} 40. Kf2 {[%clk 0:01:42]}  Kf4 {[%clk 0:00:37]} 41. d5 {[%clk 0:01:41]}  Rd3 {[%clk 0:00:35]} 42. Rd7 {[%clk 0:01:40]}  Ke5 {[%clk 0:00:35]} 43. Rh7 {[%clk 0:01:40]}  Rxd5 {[%clk 0:00:33]} 44. Rxh6 {[%clk 0:01:40]}  Kf4 {[%clk 0:00:34]} 45. Ra6 {[%clk 0:01:33]}  Rd2+ {[%clk 0:00:33]} 46. Kg1 {[%clk 0:01:34]}  Ke3 {[%clk 0:00:29]} 47. Ra3+ {[%clk 0:01:33]}  Rd3 {[%clk 0:00:27]} 48. Ra5 {[%clk 0:01:30]}  f4 {[%clk 0:00:27]} 49. Re5+ {[%clk 0:01:30]}  Kf3 {[%clk 0:00:27]} 50. Re1 {[%clk 0:01:27]}  g3 {[%clk 0:00:24]} 51. Rf1+ {[%clk 0:01:25]}  Kg4 {[%clk 0:00:23]} 52. hxg3 {[%clk 0:01:23]}  Kxg3 {[%clk 0:00:24]} 53. Ra1 {[%clk 0:01:16]}  f3 {[%clk 0:00:24]} 54. Kf1 {[%clk 0:01:09]}  Rd8 {[%clk 0:00:23]} 55. Kg1 {[%clk 0:01:00]}  Rh8 {[%clk 0:00:21]} 56. Ra2 {[%clk 0:00:57]}  Rc8 {[%clk 0:00:20]} 57. Ra1 {[%clk 0:00:57]}  Rb8 {[%clk 0:00:20]} 58. Rc1 {[%clk 0:00:56]}  Rb3 {[%clk 0:00:19]} 59. Ra1 {[%clk 0:00:54]}  Rb2 {[%clk 0:00:19]} 60. Rc1 {[%clk 0:00:50]}  Rg2+ {[%clk 0:00:19]} 61. Kf1 {[%clk 0:00:41]}  Rh2 {[%clk 0:00:20]} 0-1